bitfinex-derivatives/quotes_ETHF0:USTF0_20260123
["timestamp","ask_amount","ask_price","bid_price","bid_amount"]
[1769133673520,0.86934041,2971.3,2969.6,0.43825626]
[1769133673721,0.86934041,2971.3,2969.5,1.1868413]
[1769133673919,0.86934041,2971.3,2969.6,0.43826066]
[1769133674121,0.86934041,2971.3,2969.5,1.1868413]
[1769133674322,0.86934041,2971.3,2969.6,0.43828779]
[1769133674620,0.86934041,2971.3,2969.5,1.1868413]
[1769133674820,0.86934041,2971.3,2969.6,0.43823775]
[1769133675026,0.86934041,2971.3,2969.4,1.1868413]
[1769133675218,0.86934041,2971.3,2969.5,0.43828165]
[1769133675524,0.86934041,2971.3,2969.3,0.00402565]
[1769133675725,0.86934041,2971.3,2969.4,0.43834862]
[1769133675922,0.86934041,2971.3,2969.5,0.43834862]
[1769133676115,1.03778041,2971.3,2969.3,0.00402565]
[1769133676321,1.03778041,2971.3,2969.4,0.43834037]
[1769133676617,0.86934041,2971.1,2969.3,0.00402565]
[1769133677422,0.86934041,2970.9,2969.3,0.00402565]
[1769133677726,1.03780041,2970.9,2969.4,0.4302786]
[1769133678020,1.03780041,2970.9,2969.3,0.00402565]
[1769133678217,0.86934041,2970.7,2969.3,0.00402565]
[1769133682630,0.86934041,2970.5,2969.3,0.00402565]
[1769133696038,1.07501377,2970.4,2969.3,0.00402565]
[1769133697236,1.07501377,2970.4,2969.4,0.42404065]
[1769133697436,1.07501377,2970.4,2969.3,0.00402565]
[1769133698139,1.07501377,2970.4,2969.3,1.19086695]
[1769133698338,0.78769215,2970.3,2969.4,0.41618483]
[1769133698631,1.86270592,2970.3,2969.3,1.19086695]
[1769133698833,1.86270592,2970.3,2969.4,0.41617674]
[1769133699034,1.86270592,2970.3,2969.3,1.19086695]
[1769133699035,1.07501377,2970.3,2969.3,1.19086695]
[1769133699341,0.0050494,2970.1,2969.4,0.41612284]
[1769133699532,0.0050494,2970.1,2969.3,1.19086695]
[1769133699733,0.0050494,2970.1,2969.4,0.41613181]
[1769133699933,0.0050494,2970.1,2969.3,1.19086695]
[1769133700237,0.0050494,2970.1,2969.4,0.41613219]
[1769133700440,0.0050494,2970.1,2969.3,1.19086695]
[1769133700641,0.0050494,2970.1,2969.4,0.41615368]
[1769133700841,0.0050494,2970.1,2969.3,1.19086695]
[1769133701041,0.0050494,2970.1,2969.4,0.41615299]
[1769133701338,0.0050494,2970.1,2969.3,1.19086695]
[1769133701534,0.0050494,2970.1,2969.4,0.4162151]
[1769133701734,0.0050494,2970.1,2969.5,0.4162151]
[1769133701941,1.08006317,2970.1,2969.3,0.00402565]
[1769133702441,1.08006317,2970.1,2969.4,0.41632736]
[1769133702742,1.08006317,2970.1,2969.3,0.00402565]
[1769133703536,1.08006317,2970.1,2968.9,1.78065479]
[1769133704047,1.08006317,2970.1,2968.8,1.78065479]
[1769133704747,1.08006317,2970.1,2968.8,1.78333105]
[1769133705449,1.08006317,2970.1,2968.8,0.00267626]
[1769133710653,1.08006317,2970.1,2968.4,1.78065479]
[1769133711150,1.07501377,2969.9,2968.2,1.78065479]
[1769133711555,1.07501377,2969.9,2968.3,1.78065479]
[1769133711746,1.07789093,2969.9,2968.3,0.00263819]
[1769133712853,1.07501377,2969.7,2968.3,0.00263819]
[1769133716051,1.07501377,2969.5,2968.3,0.00263819]
[1769133716251,1.07501377,2969.2,2967.8,1.78065479]
[1769133717255,1.07501377,2969.2,2967.8,0.00283692]
[1769133719054,1.30956524,2969.3,2967.8,0.00283692]
[1769133719055,1.07501377,2969.0,2967.8,0.00283692]
[1769133720761,1.873,2969.0,2967.8,0.00283692]
[1769133723360,1.22833229,2969.1,2967.8,0.00283692]
[1769133723561,1.874,2969.0,2967.8,0.00283692]
[1769133723762,3.10233229,2969.0,2967.8,0.00283692]
[1769133723962,1.22833229,2968.9,2967.8,0.00283692]
[1769133726070,1.15101791,2968.7,2967.2,1.78065479]
[1769133726772,0.0050494,2968.2,2967.2,1.78065479]
[1769133726972,0.0050494,2968.2,2967.2,1.78347167]
[1769133727875,0.0050494,2968.2,2967.2,0.00281688]
[1769133728270,0.0050494,2968.2,2967.4,0.90022692]
[1769133728873,0.8736538,2968.1,2967.4,0.90022692]
[1769133729576,0.8736538,2967.7,2967.2,0.9030438]
[1769133729773,0.87638009,2967.7,2967.2,0.9030438]
[1769133729973,0.00272629,2967.7,2967.2,0.9030438]
[1769133731475,0.00272629,2967.7,2967.2,0.00281688]
[1769133732076,0.86601682,2967.3,2967.0,0.90078557]
[1769133732272,0.8736538,2967.5,2967.0,0.90078557]
[1769133732777,0.87638009,2967.7,2967.0,0.90078557]
[1769133732974,0.87638009,2967.7,2967.0,0.90352581]
[1769133733374,0.87638009,2967.7,2967.0,0.00274024]
[1769133736081,0.87638009,2967.7,2966.5,1.20089006]
[1769133736082,0.8736538,2967.3,2966.5,1.20089006]
[1769133736282,0.8736538,2967.3,2966.4,1.20089006]
[1769133736482,0.8736538,2967.3,2966.3,2.45908267]
[1769133736986,0.8736538,2967.3,2966.3,2.46321445]
[1769133738985,0.8736538,2967.3,2966.3,1.20502184]
[1769133739681,0.00272629,2967.7,2966.6,0.8736538]
[1769133739889,0.87638009,2967.7,2966.5,1.25819261]
[1769133740492,0.00272629,2967.7,2966.7,1.25819261]
[1769133740989,0.87638009,2967.7,2966.7,1.25819261]
[1769133743294,0.00272629,2967.7,2966.7,1.25819261]
[1769133743496,0.00272629,2967.7,2966.7,2.45908267]
[1769133745289,0.00272629,2967.7,2966.8,1.20089006]
[1769133745486,0.00272629,2967.7,2966.9,1.20089006]
[1769133745790,0.00272629,2967.7,2967.0,0.8736538]
[1769133746092,0.00272629,2967.7,2967.0,1.20089006]
[1769133747087,0.0050494,2968.2,2967.2,0.8736538]
[1769133747285,0.0050494,2968.2,2967.1,1.20089006]
[1769133747286,0.0050494,2968.2,2967.4,0.8736538]
[1769133747494,0.0050494,2968.2,2967.4,2.07454386]
[1769133747694,0.0050494,2968.2,2967.5,1.20089006]
[1769133748193,0.00922622,2968.2,2967.5,1.20089006]
[1769133748392,0.00922622,2968.2,2967.6,1.20089006]
[1769133751490,0.8736538,2968.1,2967.4,1.20089006]
[1769133751892,0.8736538,2968.1,2967.3,1.20089006]
[1769133752489,0.00922622,2968.2,2967.3,1.20089006]
[1769133752798,0.00922622,2968.2,2967.4,1.20089006]
[1769133753199,0.00922622,2968.2,2967.3,1.20089006]
[1769133753399,0.00922622,2968.2,2967.4,1.20089006]
[1769133753702,0.8736538,2968.1,2967.4,1.20089006]
[1769133754098,0.8736538,2968.1,2967.3,1.20089006]
[1769133754293,0.8736538,2968.1,2967.2,1.20089006]
[1769133754693,0.00922622,2968.2,2967.2,1.20089006]
[1769133755190,0.00922622,2968.2,2967.4,1.20089006]
[1769133755596,0.00922622,2968.2,2967.2,1.20089006]
[1769133756101,0.00922622,2968.2,2967.3,1.20089006]
[1769133756799,0.00922622,2968.2,2967.2,1.20089006]
[1769133757001,0.00922622,2968.2,2967.3,1.20089006]
[1769133759003,0.00922622,2968.2,2967.2,1.20089006]
[1769133759206,0.00922622,2968.2,2967.3,1.20089006]
[1769133759705,0.00922622,2968.2,2967.2,1.20089006]
[1769133760398,0.00922622,2968.2,2967.3,3.37785576]
[1769133760606,0.00922622,2968.2,2967.5,1.20089006]
[1769133761306,0.00922622,2968.2,2967.4,1.20089006]
[1769133761906,0.00922622,2968.2,2967.5,1.20089006]
[1769133762107,0.8736538,2968.7,2967.5,2.07959326]
[1769133762408,0.8736538,2969.1,2967.7,0.8736538]
[1769133762707,0.8736538,2968.9,2967.7,0.8736538]
[1769133763101,0.87617864,2968.9,2967.7,2.07454386]
[1769133765115,0.87617864,2968.9,2967.7,1.20089006]
[1769133765796,0.8736538,2968.7,2967.7,1.20089006]
[1769133766802,0.00252484,2968.9,2967.7,1.20089006]
[1769133766803,0.8736538,2968.4,2967.7,1.20089006]
[1769133767355,0.8736538,2968.4,2967.6,1.20089006]
[1769133767708,0.8736538,2968.4,2967.5,1.20593946]
[1769133768503,0.8736538,2968.0,2967.5,0.0050494]
[1769133768809,0.8736538,2968.2,2967.5,0.0050494]
[1769133769611,2.19904772,2968.4,2967.5,0.0050494]
[1769133774209,0.8736538,2968.6,2967.5,1.20593946]
[1769133774512,0.8736538,2968.6,2967.6,1.20089006]
[1769133774911,7.82339392,2968.8,2967.6,1.20089006]
[1769133775512,7.82339392,2968.8,2967.5,0.0050494]
[1769133777714,1.32539392,2968.7,2967.5,0.0050494]
[1769133782023,6.498,2968.8,2967.5,0.0050494]
[1769133782024,1.48767037,2968.5,2967.5,0.0050494]
[1769133786923,0.0050494,2968.3,2967.4,1.19973946]
[1769133787413,1.36453336,2968.3,2967.4,1.19973946]
[1769133790823,1.36453336,2968.3,2967.3,1.78065479]
[1769133795629,1.36453336,2968.3,2967.2,1.78065479]
[1769133797222,1.36453336,2968.3,2967.3,1.78065479]
[1769133797832,1.36453336,2968.3,2967.2,1.78065479]
[1769133798219,2.23787594,2968.3,2967.2,1.78065479]
[1769133798424,1.35948396,2968.2,2967.2,1.78065479]
[1769133799227,1.35948396,2968.1,2967.2,1.78065479]
[1769133799418,1.35948396,2968.1,2967.1,1.78065479]
[1769133799618,2.14333409,2968.0,2967.0,1.78065479]
[1769133799823,1.35948396,2968.0,2967.0,1.78065479]
[1769133800833,1.35948396,2968.0,2966.9,1.78065479]
[1769133802235,0.87839198,2968.3,2966.9,1.78065479]
[1769133802236,0.0050494,2968.3,2966.9,1.78065479]
[1769133802433,0.78365408,2968.2,2967.1,1.78065479]
[1769133802735,0.0050494,2968.3,2967.1,1.78065479]
[1769133802936,0.78363681,2968.2,2967.1,1.78065479]
[1769133803232,1.36453336,2968.3,2967.1,1.78065479]
[1769133803537,0.78364229,2968.2,2967.1,1.78065479]
[1769133803735,1.35948396,2968.2,2967.1,1.78065479]
[1769133804538,0.0050494,2968.3,2967.1,1.78065479]
[1769133804740,2.14315951,2968.2,2967.1,1.78065479]
[1769133804939,1.35948396,2968.2,2967.1,1.78065479]
[1769133805632,1.35948396,2968.2,2967.2,1.78065479]
[1769133808339,1.35948396,2968.0,2967.0,1.78065479]
[1769133809244,1.35948396,2968.0,2966.9,1.78065479]
[1769133809640,0.87334258,2967.5,2966.4,3.00059097]
[1769133809938,0.87334258,2967.5,2966.3,0.00413178]
[1769133811538,2.45397493,2967.1,2966.0,2.38277706]
[1769133811734,1.58063235,2967.0,2965.7,2.38277706]
[1769133812134,0.0050494,2966.6,2965.7,2.38277706]
[1769133812544,0.00871957,2966.6,2965.7,2.38535786]
[1769133813042,1.58063235,2967.5,2965.9,1.66150075]
[1769133813342,1.58063235,2967.9,2965.9,1.66150075]
[1769133813544,0.80855318,2967.8,2965.9,1.66150075]
[1769133813740,0.80855318,2967.7,2965.9,1.66150075]
[1769133813944,1.58063235,2967.9,2965.9,1.66150075]
[1769133814143,2.38918525,2967.8,2965.9,1.66150075]
[1769133814341,1.58063235,2967.6,2965.9,1.66150075]
[1769133815245,0.00428674,2967.9,2966.0,4.03922841]
[1769133815548,1.58491909,2967.9,2966.1,1.65645135]
[1769133815843,2.38884203,2967.8,2966.1,1.65645135]
[1769133816045,2.42090571,2969.2,2967.4,0.87334258]
[1769133816247,2.42090571,2969.2,2966.2,33.13977706]
[1769133816249,2.42090571,2971.4,2969.0,0.87334258]
[1769133816444,2.42090571,2971.4,2968.3,0.16861]
[1769133816445,1.58063235,2973.0,2970.4,0.87334258]
[1769133816637,1.58063235,2973.0,2970.0,0.87334258]
[1769133816638,1.58063235,2973.0,2970.9,1.10742221]
[1769133816836,1.58063235,2972.9,2970.9,1.10742221]
[1769133817047,1.58063235,2972.8,2970.9,1.10989232]
[1769133817244,1.58063235,2972.6,2970.9,1.10989232]
[1769133817740,4.5829703,2972.6,2970.9,1.10989232]
[1769133818244,1.58063235,2972.5,2970.9,0.00247011]
[1769133818443,1.58063235,2971.9,2969.9,1.1333234]
[1769133818638,1.58063235,2971.9,2969.1,1.1333234]
[1769133819044,1.4751296,2972.4,2969.1,1.1333234]
[1769133819045,1.58063235,2971.6,2969.1,1.1333234]
[1769133819342,1.58063235,2971.4,2969.1,1.1333234]
[1769133819544,1.58063235,2971.4,2969.1,1.13653355]
[1769133819945,1.58063235,2971.3,2969.1,1.13653355]
[1769133822447,1.58063235,2971.1,2969.1,1.13653355]
[1769133825048,1.58063235,2971.1,2969.8,0.0050494]
[1769133825439,1.58063235,2970.8,2969.8,0.0050494]
[1769133825641,1.58063235,2970.5,2969.8,0.0050494]
[1769133825852,0.00309745,2970.8,2969.1,0.00321015]
[1769133825853,4.5829703,2970.3,2969.1,0.00321015]
[1769133826150,1.58063235,2970.3,2969.1,0.00321015]
[1769133833254,1.58063235,2970.0,2969.1,0.00321015]
[1769133833653,1.58063235,2969.8,2968.1,0.16862]
[1769133834853,1.58063235,2969.8,2968.1,0.17132395]
[1769133838747,1.58063235,2969.7,2967.7,1.30904315]
[1769133838954,1.58063235,2969.0,2966.7,0.1687]
[1769133839549,0.0050494,2968.1,2966.7,0.1687]
[1769133839949,0.00906562,2968.1,2966.7,0.17304687]
[1769133842866,1.62089874,2968.1,2966.7,0.17304687]
[1769133843168,0.00906562,2968.1,2966.9,1.30904315]
[1769133847773,0.00906562,2968.1,2966.8,0.1687]
[1769133848272,1.68616568,2968.1,2966.8,0.1687]
[1769133848969,1.68616568,2968.1,2966.8,1.94888737]
[1769133849166,1.68616568,2968.1,2966.9,1.78018737]
[1769133849365,1.68616568,2968.1,2966.8,0.1687]
[1769133849366,1.68616568,2968.1,2966.8,1.94888737]
[1769133850267,1.68616568,2968.1,2966.9,1.78018737]
[1769133853173,1.68616568,2968.1,2967.0,1.78018737]
[1769133854075,1.68616568,2968.1,2966.9,1.78018737]
[1769133854473,1.68616568,2968.1,2967.0,1.78018737]
[1769133855877,1.68616568,2968.1,2967.1,1.78018737]
[1769133856278,0.00906562,2968.1,2967.1,1.78018737]
[1769133857178,0.00906562,2968.1,2967.2,1.78018737]
[1769133858878,1.67710006,2968.5,2967.3,1.78018737]
[1769133859079,1.67710006,2968.5,2967.4,1.78523677]
[1769133859972,1.68052975,2968.5,2967.4,1.78523677]
[1769133860679,1.67710006,2968.2,2967.4,0.0050494]
[1769133861972,4.67943801,2968.2,2967.4,0.0050494]
[1769133862480,4.67943801,2968.2,2967.1,2.54257796]
[1769133862481,1.67710006,2967.7,2966.8,0.64439075]
[1769133862685,3.00233795,2967.5,2966.7,0.00434687]
[1769133862887,3.00233795,2967.2,2966.7,0.00434687]
[1769133863086,3.00233795,2967.2,2966.0,1.67859355]
[1769133863284,1.67710006,2967.7,2966.0,1.67859355]
[1769133863479,1.67710006,2967.7,2965.5,0.16877]
[1769133863480,1.67710006,2967.7,2965.5,1.84736355]
[1769133863680,1.67710006,2967.4,2965.5,1.84736355]
[1769133864081,3.00233795,2967.3,2965.5,1.85134285]
[1769133866284,1.67710006,2967.9,2965.7,1.67859355]
[1769133866787,3.00233795,2967.8,2965.7,1.67859355]
[1769133867391,0.0050494,2968.1,2965.7,1.84735355]
[1769133867592,3.00233795,2968.0,2965.7,1.84735355]
[1769133868085,3.00233795,2967.9,2965.7,1.84735355]
[1769133868286,3.00233795,2968.0,2965.7,1.84735355]
[1769133868486,3.00233795,2967.9,2965.7,1.84735355]
[1769133868691,3.00233795,2968.0,2965.7,1.84735355]
[1769133868893,3.00233795,2968.0,2965.9,1.67859355]
[1769133869092,1.68214946,2968.1,2965.9,1.84733355]
[1769133869987,1.68214946,2968.1,2966.1,2.9876367]
[1769133870187,1.68214946,2968.1,2966.2,1.67859355]
[1769133870382,3.00233795,2968.0,2966.2,1.67859355]
[1769133870595,0.0050494,2968.1,2966.2,1.67859355]
[1769133870787,0.0050494,2968.1,2966.7,1.67859355]
[1769133870983,0.0050494,2968.1,2965.7,1.84735355]
[1769133870984,1.67710006,2967.8,2965.7,1.84735355]
[1769133871292,1.67710006,2967.5,2965.7,1.84735355]
[1769133871685,3.00233795,2967.3,2965.7,1.84735355]
[1769133872096,3.00233795,2967.2,2965.7,1.84735355]
[1769133872288,4.71939099,2967.3,2965.7,1.84735355]
[1769133872592,1.71705304,2967.3,2965.7,4.2529285]
[1769133872792,3.00233795,2967.1,2965.7,4.2529285]
[1769133873287,3.00233795,2967.0,2965.7,4.2529285]
[1769133873488,3.00233795,2967.1,2965.7,4.2529285]
[1769133873891,3.00233795,2967.0,2965.7,4.2529285]
[1769133874089,3.00233795,2967.1,2965.7,4.2529285]
[1769133874695,3.00233795,2967.0,2965.7,4.2529285]
[1769133874896,3.00233795,2967.0,2965.4,7.80559097]
[1769133874897,1.72210244,2968.1,2965.9,1.67732624]
[1769133875090,3.00233795,2968.0,2966.1,1.67732624]
[1769133875398,3.00233795,2967.8,2966.1,1.67732624]
[1769133875596,0.0050494,2967.3,2966.1,1.67732624]
[1769133875997,3.00738735,2967.3,2966.1,1.67732624]
[1769133876399,0.0050494,2967.3,2966.1,1.67732624]
[1769133877294,0.0050494,2967.3,2966.2,1.67732624]
[1769133877694,0.0050494,2967.3,2965.5,0.0039793]
[1769133877695,3.00233795,2966.4,2965.5,0.0039793]
[1769133877899,0.00394732,2966.4,2965.5,0.0039793]
[1769133878096,3.00233795,2966.2,2965.5,0.0039793]
[1769133878496,3.00233795,2966.1,2965.5,0.0039793]
[1769133878696,3.00233795,2966.2,2965.5,0.0039793]
[1769133879202,3.00233795,2966.1,2965.5,0.0039793]
[1769133879394,3.00233795,2966.2,2965.5,0.0039793]
[1769133879597,0.00394732,2966.4,2964.8,2.40557495]
[1769133879598,2.98973153,2965.6,2964.8,2.40557495]
[1769133879804,2.98973153,2966.2,2964.6,1.84614624]
[1769133879995,2.98973153,2966.3,2964.6,1.84614624]
[1769133880193,0.00505817,2965.7,2964.6,1.84614624]
[1769133880707,0.00505817,2965.7,2964.6,1.84969986]
[1769133881704,2.98973153,2965.6,2964.6,0.00355362]
[1769133881900,0.00505817,2965.7,2964.6,0.00355362]
[1769133881901,2.98973153,2965.4,2964.6,0.00355362]
[1769133882305,2.98973153,2965.2,2964.6,0.00355362]
[1769133882500,2.98973153,2965.4,2964.6,0.00355362]
[1769133883001,2.98973153,2965.2,2964.6,0.00355362]
[1769133883201,2.98973153,2965.4,2964.6,0.00355362]
[1769133883702,2.98973153,2965.2,2964.6,0.00355362]
[1769133883905,2.98973153,2965.4,2964.6,0.00355362]
[1769133884411,2.98973153,2965.2,2964.6,0.00355362]
[1769133884598,2.98973153,2965.4,2964.6,0.00355362]
[1769133885307,2.98973153,2965.2,2964.6,0.00355362]
[1769133885512,2.98973153,2965.4,2964.6,0.00355362]
[1769133886001,2.98973153,2965.2,2964.6,0.00355362]
[1769133886201,2.98973153,2965.4,2964.6,0.00355362]
[1769133886807,0.00505817,2965.7,2964.6,1.68087986]
[1769133887005,1.1022816,2965.6,2964.6,1.68087986]
[1769133887201,0.00505817,2965.7,2964.6,1.68087986]
[1769133887398,0.00505817,2965.7,2964.6,0.00355362]
[1769133887399,1.72211121,2965.7,2964.6,0.00355362]
[1769133887707,1.1022816,2965.1,2964.6,0.00355362]
[1769133887895,1.1022816,2964.8,2963.7,4.08290119]
[1769133888095,1.1022816,2965.0,2963.8,3.74]
[1769133888502,1.1022816,2964.9,2963.8,3.74]
[1769133888700,1.71705304,2965.5,2963.8,3.74]
[1769133888905,2.81933464,2965.5,2963.9,1.67732624]
[1769133889102,1.1022816,2965.4,2963.9,1.67732624]
[1769133889306,1.1022816,2965.3,2963.9,1.67732624]
[1769133889705,1.1022816,2965.2,2963.9,1.67732624]
[1769133889912,1.1022816,2965.3,2964.0,3.742]
[1769133890704,1.1022816,2965.2,2964.0,3.742]
[1769133890910,1.1022816,2965.3,2964.0,3.742]
[1769133891311,1.1022816,2965.2,2964.0,3.742]
[1769133891512,1.1022816,2965.3,2964.0,3.742]
[1769133892011,1.1022816,2965.2,2964.0,3.742]
[1769133892214,1.1022816,2965.3,2964.0,3.742]
[1769133892612,1.1022816,2965.2,2964.0,3.742]
[1769133892809,1.1022816,2965.3,2964.0,3.742]
[1769133893111,1.1022816,2965.4,2964.1,1.67732624]
[1769133893313,1.1022816,2965.5,2964.1,4.08290119]
[1769133893516,0.00505817,2965.7,2964.1,4.08290119]
[1769133893814,1.1022816,2965.4,2964.1,4.08290119]
[1769133894208,1.1022816,2965.3,2964.1,1.67732624]
[1769133894409,1.1022816,2965.4,2964.1,1.67732624]
[1769133894815,1.1022816,2965.3,2964.1,1.67732624]
[1769133895014,1.1022816,2965.4,2964.1,1.67732624]
[1769133895519,1.1022816,2965.3,2964.1,1.67732624]
[1769133895722,1.1022816,2965.2,2964.1,1.67732624]
[1769133896017,1.1022816,2965.4,2964.1,1.67732624]
[1769133896316,1.1022816,2965.4,2964.1,4.08290119]
[1769133896520,1.1022816,2965.3,2964.1,4.08290119]
[1769133896709,1.1022816,2965.4,2964.1,4.08290119]
[1769133896911,1.1022816,2965.5,2964.1,4.08290119]
[1769133897310,1.1022816,2965.4,2964.1,4.08290119]
[1769133897510,1.1022816,2965.5,2964.1,4.08290119]
[1769133898220,1.1022816,2965.4,2964.1,4.08290119]
[1769133898518,1.1022816,2965.5,2964.1,4.25175119]
[1769133899014,1.0960612,2964.2,2963.8,0.00261554]
[1769133899219,1.0960612,2964.0,2963.8,0.00261554]
[1769133899818,1.0960612,2963.9,2963.8,0.00261554]
[1769133900014,0.7527812,2963.9,2963.8,0.00261554]
[1769133900207,1.71705304,2965.2,2963.8,6.00261554]
[1769133900408,1.71705304,2965.2,2963.8,0.00261554]
[1769133901411,1.7210703,2965.2,2963.8,0.00261554]
[1769133901818,1.7210703,2965.2,2964.2,0.00505817]
[1769133902314,0.00401726,2965.2,2964.2,0.00505817]
[1769133904524,0.00401726,2965.2,2964.2,1.96256867]
[1769133905021,0.00401726,2965.2,2964.3,3.751]
[1769133905222,0.00401726,2965.2,2964.2,0.00505817]
[1769133905223,0.00401726,2965.2,2964.4,3.751]
[1769133905819,7.26e-06,2965.2,2964.4,3.751]
[1769133906223,1.81129269,2966.8,2964.5,2.1263405]
[1769133906522,1.81129269,2966.8,2964.7,1.9575105]
[1769133907221,1.81507609,2966.8,2964.8,2.40481453]
[1769133909022,1.81507609,2966.8,2964.9,2.40481453]
[1769133909221,1.81507609,2966.8,2965.0,2.40481453]
[1769133911222,1.81507609,2966.8,2965.1,2.40481453]
[1769133911622,1.81507609,2966.8,2964.7,4.95810147]
[1769133911623,1.81129269,2966.2,2964.7,3.00059097]
[1769133911817,1.81129269,2966.0,2964.0,3.00059097]
[1769133912121,1.81129269,2966.0,2963.7,3.16946097]
[1769133912522,1.81129269,2966.0,2963.9,3.301]
[1769133913115,1.81129269,2966.0,2964.7,0.00505817]
[1769133915829,1.81129269,2965.8,2964.7,0.00505817]
[1769133921426,0.0037834,2966.8,2964.7,0.00505817]
[1769133921427,1.81129269,2966.7,2964.7,0.00505817]
[1769133921630,1.81129269,2966.5,2964.7,0.00505817]
[1769133921924,1.81129269,2966.3,2964.7,0.00505817]
[1769133922129,1.81129269,2966.1,2964.7,0.00505817]
[1769133923417,1.81129269,2966.7,2964.7,4.37450163]
[1769133923624,1.81129269,2966.5,2964.9,2.41193296]
[1769133924523,1.81129269,2966.5,2965.0,2.41193296]
[1769133925022,0.0037834,2966.8,2965.2,2.41193296]
[1769133925224,0.0037834,2966.8,2965.3,2.41193296]
[1769133925526,0.00505817,2966.3,2965.3,2.41193296]
[1769133925728,0.00505817,2966.3,2965.4,2.41193296]
[1769133926331,0.00505817,2966.3,2965.3,2.41193296]
[1769133926526,0.00505817,2966.3,2965.2,6.14793296]
[1769133927131,0.00505817,2966.3,2965.1,6.14893296]
[1769133928128,0.00505817,2966.3,2965.1,2.41193296]
[1769133929323,0.00505817,2966.3,2965.2,2.41193296]
[1769133929720,0.00505817,2966.3,2965.2,6.15393296]
[1769133929918,1.81635086,2966.3,2965.0,2.41193296]
[1769133930126,1.81635086,2966.3,2964.8,2.41193296]
[1769133931833,1.81635086,2966.3,2964.8,6.15993296]
[1769133932236,1.81635086,2966.3,2964.9,2.41193296]
[1769133935832,1.81635086,2966.3,2964.8,3.748]
[1769133935833,1.81635086,2966.3,2965.0,2.41193296]
[1769133936231,0.00505817,2966.3,2965.3,2.41193296]
[1769133936432,0.00505817,2966.3,2965.5,2.41193296]
[1769133937533,0.00505817,2966.3,2965.5,3.753]
[1769133939138,0.00505817,2966.3,2965.2,6.16693296]
[1769133940644,0.00505817,2966.3,2965.2,2.41193296]
[1769133940839,0.00505817,2966.3,2965.2,6.16893296]
[1769133941240,1.64856713,2966.1,2964.4,3.0153401]
[1769133941444,1.64856713,2966.1,2963.9,1.78791433]
[1769133942640,1.64856713,2965.9,2963.9,1.78791433]
[1769133942847,1.64856713,2965.9,2964.0,1.875]
[1769133944647,1.64856713,2965.9,2963.9,1.78791433]
[1769133944847,1.64856713,2965.9,2963.9,3.66291433]
[1769133946143,1.64856713,2965.9,2964.8,2.58071356]
[1769133949547,1.64856713,2965.9,2963.8,0.17148554]
[1769133949748,1.64856713,2965.9,2963.8,2.04648554]
[1769133949949,1.64856713,2965.9,2963.9,1.78791433]
[1769133950852,1.6536253,2966.3,2963.9,1.95677433]
[1769133951056,0.82676674,2966.2,2963.9,1.95677433]
[1769133951351,1.6536253,2966.3,2964.3,1.78791433]
[1769133951538,1.64856713,2966.1,2964.3,1.78791433]
[1769133954658,0.00505817,2966.3,2964.6,1.78791433]
[1769133954962,0.00505817,2966.3,2964.7,1.78791433]
[1769133955665,0.00505817,2966.3,2964.8,1.78791433]
[1769133961862,1.51803754,2966.3,2964.8,1.78791433]
[1769133962364,1.51803754,2966.3,2964.5,2.41020362]
[1769133962568,1.48261919,2966.1,2964.4,1.71781219]
[1769133965464,0.00505817,2966.3,2964.6,1.46813379]
[1769133965764,2.16640329,2966.2,2964.5,3.757]
[1769133966071,0.00505817,2966.3,2964.6,1.46813379]
[1769133969568,0.82788391,2966.2,2964.7,3.762]
[1769133969864,0.82788391,2966.1,2964.7,5.23013379]
[1769133970068,0.82788391,2966.0,2964.7,5.23013379]
[1769133970267,0.00505817,2966.3,2964.7,5.23013379]
[1769133970473,0.82821311,2966.2,2964.8,1.46813379]
[1769133970673,0.82821311,2966.1,2964.8,1.46813379]
[1769133970874,0.82821311,2966.0,2964.8,1.46813379]
[1769133971075,0.00505817,2966.3,2964.8,1.46813379]
[1769133971279,0.82821312,2966.2,2964.8,1.46813379]
[1769133971470,0.82821312,2966.1,2964.8,1.46813379]
[1769133971671,0.82821312,2966.0,2964.8,1.46813379]
[1769133971978,0.00505817,2966.3,2964.8,5.22913379]
[1769133972168,0.82853856,2966.2,2964.8,1.46813379]
[1769133972370,2.00079948,2966.1,2964.4,1.63696379]
[1769133972574,2.00079948,2966.0,2964.4,5.39796379]
[1769133972774,0.82853856,2965.9,2964.4,5.39796379]
[1769133976075,0.82853856,2965.9,2964.4,5.23113379]
[1769133977981,0.82853856,2965.9,2964.4,1.46813379]
[1769133978882,1.31202589,2965.8,2964.4,1.46813379]
[1769133979276,0.82993801,2965.7,2964.4,1.46813379]
[1769133979475,0.82993801,2965.6,2964.4,1.46813379]
[1769133979682,2.26143505,2965.8,2964.4,1.46813379]
[1769133979982,0.82987791,2965.7,2964.4,1.46813379]
[1769133980181,0.82987791,2965.6,2964.4,1.46813379]
[1769133980378,2.26143505,2965.8,2964.4,1.46813379]
[1769133980575,0.82986552,2965.7,2964.4,1.46813379]
[1769133980776,2.26143505,2965.8,2964.4,1.46813379]
[1769133980777,0.82986552,2965.6,2964.4,1.46813379]
[1769133981074,2.26143505,2965.8,2964.4,1.46813379]
[1769133981383,0.82986577,2965.7,2964.4,1.46813379]
[1769133981580,0.82986577,2965.6,2964.4,1.46813379]
[1769133981781,0.82986577,2965.6,2964.0,6.17720362]
[1769133981782,0.82986577,2965.5,2964.0,3.87833741]
[1769133982077,0.89410989,2965.7,2964.0,3.87833741]
[1769133982275,0.829809,2965.6,2964.0,1.46813379]
[1769133982481,1.31202589,2965.8,2964.0,1.46813379]
[1769133982482,0.829809,2965.5,2964.0,1.46813379]
[1769133982783,1.31202589,2965.8,2964.0,1.46813379]
[1769133982978,0.82961734,2965.7,2964.1,1.46813379]
[1769133983182,0.82961734,2965.6,2964.1,1.46813379]
[1769133983379,0.82961734,2965.5,2964.1,1.46813379]
[1769133983581,1.31202589,2965.8,2964.1,1.46813379]
[1769133983781,0.82948632,2965.7,2964.1,1.46813379]
[1769133983985,0.82948632,2965.6,2964.1,1.46813379]
[1769133984283,0.82948632,2965.5,2964.1,1.46813379]
[1769133984487,1.31202589,2965.8,2964.1,1.46813379]
[1769133984679,0.82937821,2965.7,2964.1,1.46813379]
[1769133984873,0.82937821,2965.6,2964.1,1.46813379]
[1769133985081,0.82937821,2965.5,2964.1,1.46813379]
[1769133985385,1.31202589,2965.8,2964.1,1.46813379]
[1769133985586,0.82926797,2965.7,2964.1,1.46813379]
[1769133985786,0.82926797,2965.6,2964.1,1.46813379]
[1769133985989,1.31202589,2965.8,2964.1,1.46813379]
[1769133986186,0.82926793,2965.7,2964.1,1.46813379]
[1769133986387,1.31202589,2965.8,2964.1,1.46813379]
[1769133986588,0.82924302,2965.7,2964.1,1.46813379]
[1769133986889,0.82924302,2965.6,2964.1,1.46813379]
[1769133987188,1.31202589,2965.8,2964.1,1.46813379]
[1769133987388,0.82927419,2965.7,2964.1,1.46813379]
[1769133987688,0.82927419,2965.6,2964.1,1.46813379]
[1769133987991,1.31202589,2965.8,2964.1,1.46813379]
[1769133988190,0.8292361,2965.7,2964.1,1.46813379]
[1769133988391,0.8292361,2965.6,2964.1,1.46813379]
[1769133988584,1.31202589,2965.8,2964.1,1.46813379]